{"text_format":"2","workbook":"xlsx","n_sheets":2,"sheets":["Armenian","English"],"not_rendered":{"charts":0,"images":0,"macros":0,"external_links":0,"defined_names":1,"comments":0,"pivot_tables":0},"unopened":[],"bounds":{"document_bytes":16777216,"sheet_cells":100000,"run_cost":"one","rows_first":2000,"rows_last":500,"rows_between":2000,"halvings":0,"cell_chars":16384,"cell_head_chars":4096},"cells_cut":0,"cells_raw":0,"read":"whole","date_system":"1900"}

{"sheet":"Armenian","index":0,"n_rows":103,"n_cols":7,"rows_kept":103,"cut":false,"hidden":false,"merged":[[8,1,8,4],[1,1,1,6],[4,1,7,1],[4,2,7,2],[4,3,7,3],[4,4,7,4],[4,5,4,6],[5,5,5,6],[6,5,6,6],[2,2,2,5]]}
[]
[null,"ՀՀ ԿՈՏԱՅՔԻ ՄԱՐԶ Ք. ՉԱՐԵՆՑԱՎԱՆ\nՔՈՉԱՐԻ ՓՈՂՈՑ ԹԻՎ 15 ՀԱՍՑԵՈՒՄ ՄԱՆԿԱՊԱՐՏԵԶԻ ՎԵՐԱՆՈՐՈԳՈՒՄ"]
[null,null,"Ծավալաթերթ "]
[]
[null,"№","Աշխատանքների անվանումը","Չափ. միավ.","Քանակ","Ընդհանուր գինը                  "]
[{"$nulls":5},"(նյութ + աշխատանք)"]
[{"$nulls":5},"ՀՀ դրամ"]
[{"$nulls":5},"Միավոր","Ընդհ."]
[null,"ՀՀ ԿՈՏԱՅՔԻ ՄԱՐԶ Ք. ՉԱՐԵՆՑԱՎԱՆ\nՔՈՉԱՐԻ ՓՈՂՈՑ ԹԻՎ 15 ՀԱՍՑԵՈՒՄ ՄԱՆԿԱՊԱՐՏԵԶԻ ՎԵՐԱՆՈՐՈԳՈՒՄ"]
[null,null,"Քանդման աշխատանքներ"]
[null,1,"Միջնապատերի քանդում Խարամաբետոնե  սալերից  100 մմ հաստ.","մ3",{"$f":"10.71*0.15","v":1.6065}]
[null,2,"Փայտե դռների քանդում","100մ2",3.5999999999999997E-2]
[null,{"$f":"B12+1","v":3},"Մանրահատակի  քանդում","100մ2",0.70499999999999996]
[null,4,"Մոզայիկ հատակների քանդում","100մ2",{"$f":"80.6/100","v":0.80599999999999994}]
[null,5,"Կերամիկական սալիկների քանդում","100մ2",4.1000000000000002E-2]
[null,6,"Ցեմ-ավազե հարթ.շերտ  հաստ. 30մմ","100մ2",{"$f":"557.6/100","v":5.5760000000000005}]
[null,7,"Պատերից հին ներկի մաքրում","100մ2",1.6140000000000001]
[null,8,"Գաջե  սվաղի քանդում առաստաղից","100մ2",2.5]
[null,9,"Շին աղբի հավաքում և տեղափոխում մինչև 11 կմ ","տ",1.2230000000000001]
[null,null,"Պատուհաններ, դռներ"]
[null,1,"Մետաղապլաստե պատուհան տեղական 60\nմմ հաստ 4+4 մմ ապակեփաթեթով սպիտակ բացվող","մ2",4.2]
[null,2,"Մետաղապլաստե պատուհան տեղական 60 մմ հաստ 4+4 մմ ապակեփաթեթով\nսպիտակ, չբացվող","մ2",6.64]
[null,3,"Մետաղապլաստե դռներ տեղական սպիտակ ","մ2",9.4]
[null,4," Պլասմասե պատուհանագոգեր  25սմ","գ.մ",{"$f":"1.75*4","v":7}]
[null,null,"Հատակներ"]
[null,1,"Պատերի սվաղ գաջե շաղախով","100մ2",0.60199999999999998]
[null,2,"Պատերի ներկում ","100մ2",1.665]
[null,3,"Պատերի  սվաղ ցեմենտային շաղախով","100մ2",0.375]
[null,4,"Պատուհանների շեպերի սվաղ գաջե շաղախով","100մ2",0.10100000000000001]
[null,5,"Պատուհանների շեպերի ներկում ","100մ2",{"$f":"+E29","v":0.10100000000000001}]
[null,6,"Պատերի կերամիկական սալիկապատում","100մ2",0.309]
[null,7,"Արմստրոնգ  առաստաղ ","մ2",66.099999999999994]
[null,null,"Կոնստրուկտիվ աշխատանքներ"]
[null,1,"Միջնորմների շար 10 սմ խ.բետոնե բլոկներով","մ2",16.5]
[null,2,"Միջնորմների շար 20 սմ խ.բետոնե բլոկներով","մ2",13.5]
[null,3,"Անցքերի լցոնում թեթև բետոնով B-7.5 դասի","մ3",{"$f":"(16.5*0.1)*0.25+0.81","v":1.2225000000000001}]
[null,4,"Պատի շարվածքի  ամրանավորում","տ",{"$f":"0.041+0.0362","v":7.7200000000000005E-2}]
[null,5,"Ամրան A500C դասի 12մմ","տ",{"$f":"+E37","v":7.7200000000000005E-2}]
[null,6,"Արտաքին պատերից քանդված քարերի լրացում սրբատաշ տուֆ քարից ց/ա շաղախի կիրառմամբ","մ3",{"$f":"0.22+0.56+0.2","v":0.98}]
[null,7,"Արտաքին պատերի սվաղ  ցեմենտային շաղախով","100մ2",1.78E-2]
[null,8,"Արտաքին պատերի ներկում ֆասադային ներկով","100մ2",{"$f":"+E40","v":1.78E-2}]
[null,9,"Պատի շարվածքի  ամրանավորում","տ",{"$f":"(0.0126+0.0432+0.0378+0.0756+0.0729+0.0252+0.0288+0.048)/10","v":3.4410000000000003E-2}]
[null,10,"Ամրան A500C դասի 12մմ","տ",{"$f":"(0.0126+0.0432+0.0378+0.0756+0.0729+0.0252+0.0288+0.048)/10","v":3.4410000000000003E-2}]
[null,11,"Երկաթբետոնե բարավորների իրականացում  B-20 դասի բետոնով","մ3",0.39]
[null,12,"Ամրան A500C դասի","տ",3.6999999999999998E-2]
[null,13,"Ամրան Ac1 դասի","տ",4.8000000000000001E-2]
[null,null,"Þ»ÝùÇ Ý»ñùÇÝ ë³éÁ ¨ ï³ù çñ³Ù³ï³Ï³ñ³ñÙ³Ý ³ßË³ï³ÝùÝ»ñ"]
[null,1,"äáÉÇåñáåÇÉ»Ý»  ËáÕáí³Ï                 PPR-AL-PEX Ø25մմ","մ",16]
[null,2,"äáÉÇåñáåÇÉ»Ý»  ËáÕáí³Ï                 PPR-AL-PEX  ∅20","մ",18]
[null,3,"PPR ամրակ (клипса) Ø25մմ","հատ",20]
[null,4,"PPR ամրակ (клипса) Ø20մմ","հատ",30]
[null,5,"äáÉÇåñáåÇÉ»Ý»  ËáÕáí³ÏÇ Ó¨³íáñ Ù³ë»ñ   Ø25","հատ",{"$f":"2+5+4+5","v":16}]
[null,6,"äáÉÇåñáåÇÉ»Ý»  ËáÕáí³ÏÇ Ó¨³íáñ Ù³ë»ñ   Ø20","հատ",8]
[null,7,"PPR գնդիկավոր փական Ø25 մմ","հատ",4]
[null,8,"Կոմբինացված անկյունակ 20-1/2*F","հատ",16]
[null,9,"Èí³ó³ñ³ÝÇ Íáñ³Ï-խառնիչի  ï»Õ³¹ñáõÙ","հատ",9]
[null,10,"Համակարգի փորձարկում","100մ",{"$f":"0.16+0.18","v":0.33999999999999997}]
[null,null,"Ն»ñùÇÝ և արտաքին ÏáÛáõÕáõ ³ßË³ï³ÝùÝ»ñ"]
[null,1,"PVC կոյուղու խողովակ Ø110","մ",27]
[null,2,"PVC կոյուղու խողովակ Ø50","մ",26.5]
[null,3,"PVC անկյունակ Ø110 90*","հատ",1]
[null,4,"PVC անկյունակ Ø110 45*","հատ",6]
[null,5,"PVC անկյունակ Ø50 90*","հատ",5]
[null,6,"PVC անկյունակ Ø50 45*","հատ",25]
[null,7,"PVC եռաբաշխիչ Ø110 45*","հատ",4]
[null,8,"PVC եռաբաշխիչ Ø110 90*","հատ",6]
[null,9,"PVC եռաբաշխիչ Ø50 45*","հատ",6]
[null,10,"PVC եռաբաշխիչ Ø50-110 45*","հատ",6]
[null,11,"PVC անցում Ø50-110","հատ",3]
[null,12,"Հոսակ     ö50","լրակազմ",6]
[null,13,"¼áõ·³ñ³Ý³ÏáÝù   ","լրակազմ",7]
[null,14,"Խոհանոցակոնք","հատ",1]
[null,15,"Լվացարան","հատ",8]
[null,16,"Համակարգի փորձարկում","100մ",{"$f":"0.27+0.265","v":0.53500000000000003}]
[null,null,"Էլեկտրոտեխնիկական աշխատանքներ"]
[null,1,"Վահանակ դռնակով, տեղադրվող պատի խոռոչում, 6 մոդուլի համար","հատ",1]
[null,2,"Ավտոմատ անջատիչ միաբևեռ, 40Ա 6կԱ","հատ",1]
[null,3,"Ավտոմատ անջատիչ միաբևեռ,  32Ա 6կԱ","հատ",5]
[null,4,"Ավտոմատ անջատիչ միաբևեռ, 10Ա 6կԱ","հատ",2]
[null,5,"Մալուխ պղնձե\n ВВГнг-Ls  3x1.5մմ2","100մ",0.84]
[null,6,"Մալուխ պղնձե\n ВВГнг-Ls  3x2.5մմ2","100մ",0.72]
[null,7,"Մալուխ պղնձե\n ВВГнг-Ls  3x4մմ2","100մ",0.27]
[null,8,"Պոլիէթիլենային էլեկտրատեխնիկական գոֆրե խողովակ այրմանը չնպաստող Ф20մմ","100մ",0.37]
[null,9,"Վարդակ 16Ա, շուկո տիպի","100հատ",0.17]
[null,10,"Անջատիչ, մեկստեղն 220Վ, 6Ա","100հատ",0.02]
[null,11,"Անջատիչ, երկտեղն  220Վ, 6Ա ","100հատ",{"$f":"3/100","v":0.03}]
[null,12,"Շրջանակ 1 տեղ","հատ",5]
[null,13,"Շրջանակ 2 տեղ","հատ",6]
[null,14,"Վարդակ / անջատիչի  տուփ","հատ",22]
[null,15,"Լուսադիոդային LED լուսատու առաստաղի  36 wt","հատ",22]
[null,16,"Լուսադիոդային LED լուսատու առաստաղի  22 wt","հատ",6]
[null,null,"Ընդհանուրը"]
[null,null,"ԱԱՀ ",0,null,null,0]
[null,null,"Ընդհանուրը"]
[]
[null,"Ներկայացվող բոլոր գները պետք է ներառեն վերադիր ծախսերը, շահույթը և տեղափողման ծախսերը։"]
[null,"Օգտագործվող բոլոր նյութերը պետք է լինեն նոր, բարձրորակ և չօգտագործված։"]
[]
[null,null,"Շինարարական կազմակերպություն` "]
[]
[null,null,"Տնօրեն`  "]
[]
[null,null,"Ստորագրություն  ","Ամսաթիվ "]

{"sheet":"English","index":1,"n_rows":102,"n_cols":7,"rows_kept":102,"cut":false,"hidden":false,"merged":[[1,1,1,6],[2,2,2,5],[4,1,7,1],[4,2,7,2],[4,3,7,3],[4,4,7,4],[4,5,4,6],[5,5,5,6],[6,5,6,6]]}
[]
[null,"KOTAYK REGION , RA  CHARENTSAVAN CITY\nKINDERGARDEN RENOVATION AT 15 KOCHAR STREET"]
[null,null,"Volume sheet"]
[]
[null,"№","Name of activities","Unit","amount","Total Price                  "]
[{"$nulls":5},"(material + work)"]
[{"$nulls":5},"AMD"]
[{"$nulls":5},"unit","total"]
[null,null,"Demolition work"]
[null,1,"Demolition of partitions from slab concrete slabs 100 mm thick.","մ3",{"$f":"10.71*0.15","v":1.6065}]
[null,2,"Demolition of wooden doors","100m2",3.5999999999999997E-2]
[null,{"$f":"B11+1","v":3},"Parquet demolition","100m2",0.70499999999999996]
[null,4,"Demolition of mosaic floors","100m2",{"$f":"80.6/100","v":0.80599999999999994}]
[null,5,"Demolition of ceramic tiles","100m2",4.1000000000000002E-2]
[null,6,"Jam-sand smooth. Layer thick. 30 mm","100m2",{"$f":"557.6/100","v":5.5760000000000005}]
[null,7,"Cleaning old paint from the walls","100m2",1.6140000000000001]
[null,8,"Demolition of plaster plaster from the ceiling","100m2",2.5]
[null,9,"Garbage collection և transportation up to 11 km","t",1.2230000000000001]
[null,null,"Windows, doors"]
[null,1,"Metal-plastic window local 60\nmm thick with 4 + 4 mm white opening ","m2",4.2]
[null,2,"Metal-plastic window with local 60 mm thick 4 + 4 mm glass package\nwhite, non-opening ","m2",6.64]
[null,3,"Metal-plastic doors local white","m2",9.4]
[null,4," Plastic window sills 25 cm","g.m.",{"$f":"1.75*4","v":7}]
[null,null,"Floors:"]
[null,1,"Plaster the walls with plaster mortar","100m2",0.60199999999999998]
[null,2,"Wall painting","100m2",1.665]
[null,3,"Wall plaster with cement mortar","100m2",0.375]
[null,4,"Plaster of window sills with plaster mortar","100m2",0.10100000000000001]
[null,5,"Painting window panes","100m2",{"$f":"+E28","v":0.10100000000000001}]
[null,6,"Ceramic wall tiling","100m2",0.309]
[null,7,"Armstrong ceiling","m2",66.099999999999994]
[null,null,"Constructive works"]
[null,1,"Partition row with 10 cm concrete blocks","m2",16.5]
[null,2,"Partition row with 20 cm concrete blocks","m2",13.5]
[null,3,"Filling of holes with light concrete B-7.5 class","m3",{"$f":"(16.5*0.1)*0.25+0.81","v":1.2225000000000001}]
[null,4,"Reinforcement of the wall","t",{"$f":"0.041+0.0362","v":7.7200000000000005E-2}]
[null,5,"Reinforcement A500C class 12 mm","t",{"$f":"+E36","v":7.7200000000000005E-2}]
[null,6,"Filling of stones demolished from external walls with the use of polished tuff stone c / a mortar","m3",{"$f":"0.22+0.56+0.2","v":0.98}]
[null,7,"Exterior wall plaster with cement mortar","100m2",1.78E-2]
[null,8,"Exterior wall painting with facade paint","100m2",{"$f":"+E39","v":1.78E-2}]
[null,9,"Reinforcement of the wall","t",{"$f":"(0.0126+0.0432+0.0378+0.0756+0.0729+0.0252+0.0288+0.048)/10","v":3.4410000000000003E-2}]
[null,10,"Reinforcement A500C class 12 mm","t",{"$f":"(0.0126+0.0432+0.0378+0.0756+0.0729+0.0252+0.0288+0.048)/10","v":3.4410000000000003E-2}]
[null,11,"Implementation of reinforced concrete barriers with B-20 class concrete","m3",0.39]
[null,12,"Reinforcement A500C class","t",3.6999999999999998E-2]
[null,13,"Reinforcement of Ac1 class","t",4.8000000000000001E-2]
[null,null,"Cold and hot water supply inside the building"]
[null,1,"polypropylene pipe                PPR-AL-PEX Ø25mm","m",16]
[null,2,"polypropylene pipe                 PPR-AL-PEX  ∅20","m",18]
[null,3,"PPR clamp (clip) Ø25 mm","unit",20]
[null,4,"PPR clamp (clip) Ø20 mm","unit",30]
[null,5,"polypropylene pipe particles   Ø25","unit",{"$f":"2+5+4+5","v":16}]
[null,6,"polypropylene pipe particles  Ø20","unit",8]
[null,7,"PPR ball valve Ø25 mm","unit",4]
[null,8,"Combined angle 20-1 / 2 * F","unit",16]
[null,9,"Installation of sink faucet mixer","unit",9]
[null,10,"System testing","100m",{"$f":"0.16+0.18","v":0.33999999999999997}]
[null,null,"internal and external sewerage works"]
[null,1,"PVC sewer pipe Ø110","m",27]
[null,2,"PVC sewer pipe Ø50","m",26.5]
[null,3,"PVC corner Ø110 90 *","unit",1]
[null,4,"PVC corner Ø110 45 *","unit",6]
[null,5,"PVC corner Ø50 90 *","unit",5]
[null,6,"PVC corner Ø50 45 *","unit",25]
[null,7,"PVC tee Ø110 45 *","unit",4]
[null,8,"PVC tee Ø110 90 *","unit",6]
[null,9,"PVC tee Ø50 45 *","unit",6]
[null,10,"PVC tee Ø50-110 45 *","unit",6]
[null,11,"PVC transition Ø50-110","unit",3]
[null,12,"Stream ö50","set",6]
[null,13,"Toilet:","set",7]
[null,14,"Kitchen","unit",1]
[null,15,"Sink:","unit",8]
[null,16,"System testing","100m",{"$f":"0.27+0.265","v":0.53500000000000003}]
[null,null,"Electrical works"]
[null,1,"Panel with door, wall mounting, for 6 modules","unit",1]
[null,2,"Single circuit breaker, 40 A 6 kA","unit",1]
[null,3,"Single circuit breaker, 32A6KA","unit",5]
[null,4,"Single circuit breaker, 10 A 6 kA","unit",2]
[null,5,"Copper cable\n ВВГнг-Ls 3x1.5 mm2 ","100m",0.84]
[null,6,"Copper cable\n ВВГнг-Ls 3x2.5 mm2 ","100m",0.72]
[null,7,"Copper cable\n ВВГнг-Ls 3x4 mm2 ","100m",0.27]
[null,8,"Polyethylene electro-technical corrugated pipe Non-combustible Ф20 mm","100m",0.37]
[null,9,"Socket 16A, market type","100 unit",0.17]
[null,10,"Switch, 220 V, 6 A.","100 unit",0.02]
[null,11,"Switch, double 220V, 6A","100 unit",{"$f":"3/100","v":0.03}]
[null,12,"Frame 1 place","unit",5]
[null,13,"Frame 2 places","unit",6]
[null,14,"Socket / switch box","unit",22]
[null,15,"LED ceiling light 36 wt","unit",22]
[null,16,"LED ceiling light 22 wt","unit",6]
[null,null,"Total:"]
[null,null,"VAT:",0,null,null,0]
[null,null,"Total:"]
[]
[null,"All prices quoted should include overhead costs, profit և relocation costs."]
[null,"All materials used must be new, high quality, unused"]
[]
[null,null,"Construction Company"]
[]
[null,null,"Director"]
[]
[null,null,"Signature","Date"]